[Event "Titled Tuesday Blitz March 28 Late 2023"]
[White "Rios Escobar, Adan"]
[Black "Urazayev, Arystanbek"]
[WhiteFideId "3403645"]
[BlackFideId "13709810"]
[WhiteElo "2421"]
[BlackElo "2479"]
[Result "0-1"]
[Round "01"]
[TimeControl "180+2"]
[Date "2023.03.28"]
[WhiteClock "0:00:01"]
[BlackClock "0:00:37"]

1. d4 {[%clk 0:02:59]}  Nf6 {[%clk 0:02:57]} 2. g3 {[%clk 0:02:59]}  e6 {[%clk 0:02:49]} 3. c4 {[%clk 0:02:58]}  d5 {[%clk 0:02:49]} 4. Bg2 {[%clk 0:02:58]}  Be7 {[%clk 0:02:49]} 5. Nf3 {[%clk 0:02:58]}  O-O {[%clk 0:02:49]} 6. O-O {[%clk 0:02:58]}  c6 {[%clk 0:02:48]} 7. Qc2 {[%clk 0:02:58]}  b6 {[%clk 0:02:45]} 8. Rd1 {[%clk 0:02:58]}  Nbd7 {[%clk 0:02:44]} 9. Nbd2 {[%clk 0:02:58]}  Ba6 {[%clk 0:02:26]} 10. b3 {[%clk 0:02:39]}  c5 {[%clk 0:02:24]} 11. dxc5 {[%clk 0:02:13]}  bxc5 {[%clk 0:02:18]} 12. cxd5 {[%clk 0:02:04]}  exd5 {[%clk 0:02:18]} 13. Nf1 {[%clk 0:01:59]}  Qb6 {[%clk 0:02:13]} 14. Ne3 {[%clk 0:01:52]}  Bb7 {[%clk 0:01:55]} 15. Bb2 {[%clk 0:01:50]}  Rfe8 {[%clk 0:01:52]} 16. Rac1 {[%clk 0:01:49]}  Bf8 {[%clk 0:01:48]} 17. Ng5 {[%clk 0:01:39]}  h6 {[%clk 0:01:28]} 18. Nh3 {[%clk 0:01:01]}  d4 {[%clk 0:01:25]} 19. Nc4 {[%clk 0:00:59]}  Qa6 {[%clk 0:01:26]} 20. Bxb7 {[%clk 0:00:51]}  Qxb7 {[%clk 0:01:27]} 21. Nf4 {[%clk 0:00:50]}  Nb6 {[%clk 0:01:23]} 22. Re1 {[%clk 0:00:36]}  Nbd5 {[%clk 0:01:22]} 23. Nxd5 {[%clk 0:00:31]}  Qxd5 {[%clk 0:01:23]} 24. Rcd1 {[%clk 0:00:29]}  Qh5 {[%clk 0:01:22]} 25. Kg2 {[%clk 0:00:15]}  Rad8 {[%clk 0:01:22]} 26. h3 {[%clk 0:00:14]}  Ne4 {[%clk 0:01:20]} 27. Rd3 {[%clk 0:00:13]}  Ng5 {[%clk 0:01:19]} 28. h4 {[%clk 0:00:11]}  Ne6 {[%clk 0:01:20]} 29. Rf3 {[%clk 0:00:10]}  Qg4 {[%clk 0:01:17]} 30. Qf5 {[%clk 0:00:10]}  Qxf5 {[%clk 0:01:12]} 31. Rxf5 {[%clk 0:00:11]}  d3 {[%clk 0:01:11]} 32. exd3 {[%clk 0:00:06]}  Nf4+ {[%clk 0:01:11]} 33. Kf1 {[%clk 0:00:06]}  Rxe1+ {[%clk 0:01:09]} 34. Kxe1 {[%clk 0:00:07]}  Nxd3+ {[%clk 0:01:09]} 35. Ke2 {[%clk 0:00:08]}  g6 {[%clk 0:00:47]} 36. Rf3 {[%clk 0:00:07]}  Nxb2 {[%clk 0:00:48]} 37. Nxb2 {[%clk 0:00:08]}  Bg7 {[%clk 0:00:46]} 38. Na4 {[%clk 0:00:07]}  Bd4 {[%clk 0:00:46]} 39. Rd3 {[%clk 0:00:07]}  f5 {[%clk 0:00:43]} 40. Nxc5 {[%clk 0:00:06]}  Re8+ {[%clk 0:00:44]} 41. Kf3 {[%clk 0:00:05]}  Bxc5 {[%clk 0:00:44]} 42. Rd7 {[%clk 0:00:05]}  Re7 {[%clk 0:00:45]} 43. Rd8+ {[%clk 0:00:05]}  Kg7 {[%clk 0:00:45]} 44. a3 {[%clk 0:00:06]}  Bxa3 {[%clk 0:00:44]} 45. Rd5 {[%clk 0:00:06]}  Bb4 {[%clk 0:00:43]} 46. Rb5 {[%clk 0:00:06]}  a5 {[%clk 0:00:44]} 47. h5 {[%clk 0:00:07]}  gxh5 {[%clk 0:00:43]} 48. Kg2 {[%clk 0:00:05]}  Kf6 {[%clk 0:00:43]} 49. Rb6+ {[%clk 0:00:05]}  Re6 {[%clk 0:00:43]} 50. Rb5 {[%clk 0:00:05]}  h4 {[%clk 0:00:43]} 51. gxh4 {[%clk 0:00:05]}  Kg6 {[%clk 0:00:42]} 52. h5+ {[%clk 0:00:05]}  Kg5 {[%clk 0:00:43]} 53. Kg3 {[%clk 0:00:05]}  Rf6 {[%clk 0:00:43]} 54. f4+ {[%clk 0:00:04]}  Kxh5 {[%clk 0:00:44]} 55. Rd5 {[%clk 0:00:04]}  Be1+ {[%clk 0:00:44]} 56. Kh3 {[%clk 0:00:04]}  Kg6 {[%clk 0:00:42]} 57. Re5 {[%clk 0:00:03]}  Bb4 {[%clk 0:00:42]} 58. Re3 {[%clk 0:00:03]}  Rc6 {[%clk 0:00:42]} 59. Re8 {[%clk 0:00:02]}  Rc3+ {[%clk 0:00:40]} 60. Kh4 {[%clk 0:00:02]}  Rc1 {[%clk 0:00:40]} 61. Kh3 {[%clk 0:00:02]}  Rf1 {[%clk 0:00:39]} 62. Kg3 {[%clk 0:00:01]}  Bd2 {[%clk 0:00:40]} 63. Rg8+ {[%clk 0:00:01]}  Kh5 {[%clk 0:00:40]} 64. Ra8 {[%clk 0:00:01]}  Rxf4 {[%clk 0:00:38]} 65. Ra6 {[%clk 0:00:01]}  Rb4 {[%clk 0:00:37]} 0-1


[Site "https://www.chess.com"]

[Event "Titled Tuesday Blitz March 28 Late 2023"]
[White "Ozen, Bahadir"]
[Black "Vafin, Ayrat"]
[WhiteFideId "6337058"]
[BlackFideId "4146530"]
[WhiteElo "2503"]
[BlackElo "2317"]
[Result "1-0"]
[Round "01"]
[TimeControl "180+2"]
[Date "2023.03.28"]
[WhiteClock "0:00:29"]
[BlackClock "0:00:03"]

1. h3 {[%clk 0:03:00]}  d5 {[%clk 0:02:57]} 2. Nf3 {[%clk 0:02:59]}  Nc6 {[%clk 0:02:56]} 3. d4 {[%clk 0:02:58]}  Bf5 {[%clk 0:02:57]} 4. e3 {[%clk 0:02:55]}  Nb4 {[%clk 0:02:50]} 5. Bb5+ {[%clk 0:02:54]}  c6 {[%clk 0:02:47]} 6. Ba4 {[%clk 0:02:54]}  Qa5 {[%clk 0:02:42]} 7. Nc3 {[%clk 0:02:46]}  Nf6 {[%clk 0:02:27]} 8. a3 {[%clk 0:02:38]}  Na6 {[%clk 0:02:28]} 9. b4 {[%clk 0:02:36]}  Qc7 {[%clk 0:02:24]} 10. b5 {[%clk 0:02:31]}  Nb8 {[%clk 0:02:22]} 11. bxc6 {[%clk 0:02:28]}  Nxc6 {[%clk 0:02:20]} 12. Rb1 {[%clk 0:02:17]}  e6 {[%clk 0:02:13]} 13. Ne5 {[%clk 0:02:17]}  Rc8 {[%clk 0:02:05]} 14. g4 {[%clk 0:02:13]}  Ne4 {[%clk 0:01:56]} 15. Bd2 {[%clk 0:01:51]}  Nxc3 {[%clk 0:01:19]} 16. Bxc3 {[%clk 0:01:52]}  Bg6 {[%clk 0:01:18]} 17. h4 {[%clk 0:01:48]}  f6 {[%clk 0:01:06]} 18. Nxg6 {[%clk 0:01:46]}  hxg6 {[%clk 0:01:07]} 19. Qd3 {[%clk 0:01:45]}  Kf7 {[%clk 0:01:05]} 20. Bd2 {[%clk 0:01:28]}  Bd6 {[%clk 0:01:01]} 21. c4 {[%clk 0:01:22]}  dxc4 {[%clk 0:00:53]} 22. Qxc4 {[%clk 0:01:23]}  Ne7 {[%clk 0:00:53]} 23. Qxc7 {[%clk 0:01:13]}  Rxc7 {[%clk 0:00:54]} 24. Ke2 {[%clk 0:01:14]}  Bxa3 {[%clk 0:00:53]} 25. Bb3 {[%clk 0:01:11]}  Bd6 {[%clk 0:00:44]} 26. Ra1 {[%clk 0:01:12]}  b6 {[%clk 0:00:40]} 27. Ra6 {[%clk 0:00:57]}  Nd5 {[%clk 0:00:26]} 28. Rha1 {[%clk 0:00:38]}  Rxh4 {[%clk 0:00:24]} 29. Rxa7 {[%clk 0:00:39]}  Rxa7 {[%clk 0:00:09]} 30. Rxa7+ {[%clk 0:00:40]}  Kg8 {[%clk 0:00:10]} 31. Rd7 {[%clk 0:00:29]}  Bf8 {[%clk 0:00:10]} 32. e4 {[%clk 0:00:28]}  Ne7 {[%clk 0:00:02]} 33. Bxe6+ {[%clk 0:00:28]}  Kh7 {[%clk 0:00:03]} 34. Rd8 {[%clk 0:00:29]} 1-0


[Site "https://www.chess.com"]

[Event "Titled Tuesday Blitz March 28 Late 2023"]
[White "Preotu, Razvan"]
[Black "Rottenwohrer Suarez, Juan"]
[WhiteFideId "2613280"]
[BlackFideId "32068182"]
[WhiteElo "2407"]
[BlackElo "2174"]
[Result "1-0"]
[Round "01"]
[TimeControl "180+2"]
[Date "2023.03.28"]
[WhiteClock "0:00:06"]
[BlackClock "0:00:01"]

1. e4 {[%clk 0:03:00]}  c6 {[%clk 0:02:59]} 2. Nc3 {[%clk 0:03:00]}  d5 {[%clk 0:02:59]} 3. Nf3 {[%clk 0:03:01]}  Bg4 {[%clk 0:02:57]} 4. h3 {[%clk 0:03:01]}  Bxf3 {[%clk 0:02:56]} 5. Qxf3 {[%clk 0:03:02]}  d4 {[%clk 0:02:42]} 6. Bc4 {[%clk 0:03:02]}  e6 {[%clk 0:02:34]} 7. Ne2 {[%clk 0:03:01]}  Nf6 {[%clk 0:02:07]} 8. c3 {[%clk 0:03:01]}  c5 {[%clk 0:01:54]} 9. e5 {[%clk 0:02:58]}  Nd5 {[%clk 0:01:36]} 10. cxd4 {[%clk 0:02:03]}  Nc6 {[%clk 0:01:35]} 11. Bb5 {[%clk 0:02:03]}  Qb6 {[%clk 0:01:31]} 12. Nc3 {[%clk 0:01:43]}  Nb4 {[%clk 0:01:02]} 13. dxc5 {[%clk 0:01:26]}  Bxc5 {[%clk 0:00:56]} 14. O-O {[%clk 0:01:26]}  O-O {[%clk 0:00:47]} 15. Bxc6 {[%clk 0:01:26]}  Nxc6 {[%clk 0:00:46]} 16. Qg3 {[%clk 0:01:06]}  Bd4 {[%clk 0:00:43]} 17. Re1 {[%clk 0:01:06]}  Qa5 {[%clk 0:00:34]} 18. d3 {[%clk 0:01:05]}  Bxe5 {[%clk 0:00:32]} 19. Bf4 {[%clk 0:01:03]}  Bxf4 {[%clk 0:00:30]} 20. Qxf4 {[%clk 0:01:04]}  Rfd8 {[%clk 0:00:28]} 21. Re3 {[%clk 0:01:04]}  Qf5 {[%clk 0:00:19]} 22. Qxf5 {[%clk 0:00:59]}  exf5 {[%clk 0:00:19]} 23. Ne2 {[%clk 0:00:51]}  g6 {[%clk 0:00:13]} 24. Rc1 {[%clk 0:00:51]}  Rd7 {[%clk 0:00:13]} 25. a3 {[%clk 0:00:45]}  Rad8 {[%clk 0:00:14]} 26. Rc3 {[%clk 0:00:45]}  Kg7 {[%clk 0:00:14]} 27. h4 {[%clk 0:00:40]}  Ne7 {[%clk 0:00:14]} 28. Nf4 {[%clk 0:00:39]}  Nd5 {[%clk 0:00:11]} 29. Nxd5 {[%clk 0:00:39]}  Rxd5 {[%clk 0:00:12]} 30. Re7 {[%clk 0:00:38]}  R8d7 {[%clk 0:00:13]} 31. Rxd7 {[%clk 0:00:37]}  Rxd7 {[%clk 0:00:13]} 32. f4 {[%clk 0:00:36]}  h5 {[%clk 0:00:13]} 33. Kf2 {[%clk 0:00:36]}  Kf6 {[%clk 0:00:13]} 34. Ke3 {[%clk 0:00:35]}  Ke6 {[%clk 0:00:14]} 35. Rc4 {[%clk 0:00:34]}  b6 {[%clk 0:00:10]} 36. a4 {[%clk 0:00:32]}  Re7 {[%clk 0:00:08]} 37. Kd2 {[%clk 0:00:28]}  Kd5 {[%clk 0:00:08]} 38. Rc8 {[%clk 0:00:28]}  Kd6 {[%clk 0:00:05]} 39. b4 {[%clk 0:00:27]}  Kd5 {[%clk 0:00:06]} 40. b5 {[%clk 0:00:27]}  Kd6 {[%clk 0:00:06]} 41. Rc6+ {[%clk 0:00:22]}  Kd5 {[%clk 0:00:06]} 42. Kc3 {[%clk 0:00:16]}  Rd7 {[%clk 0:00:04]} 43. Kd2 {[%clk 0:00:08]}  Re7 {[%clk 0:00:05]} 44. Rc1 {[%clk 0:00:08]}  Rd7 {[%clk 0:00:04]} 45. Re1 {[%clk 0:00:08]}  Kc5 {[%clk 0:00:05]} 46. Kc3 {[%clk 0:00:08]}  Rc7 {[%clk 0:00:04]} 47. Re5+ {[%clk 0:00:08]}  Kd6+ {[%clk 0:00:04]} 48. Kd2 {[%clk 0:00:09]}  Rd7 {[%clk 0:00:02]} 49. Re8 {[%clk 0:00:09]}  Rc7 {[%clk 0:00:03]} 50. d4 {[%clk 0:00:09]}  Kd5 {[%clk 0:00:03]} 51. Kd3 {[%clk 0:00:09]}  Rc1 {[%clk 0:00:02]} 52. Re7 {[%clk 0:00:07]}  Rd1+ {[%clk 0:00:01]} 53. Kc3 {[%clk 0:00:07]}  Rc1+ {[%clk 0:00:01]} 54. Kb2 {[%clk 0:00:06]}  Rd1 {[%clk 0:00:01]} 55. Rxa7 {[%clk 0:00:07]}  Ke4 {[%clk 0:00:01]} 56. a5 {[%clk 0:00:03]}  Rd2+ {[%clk 0:00:01]} 57. Kc3 {[%clk 0:00:03]}  Rd3+ {[%clk 0:00:02]} 58. Kc2 {[%clk 0:00:04]}  bxa5 {[%clk 0:00:03]} 59. Rxa5 {[%clk 0:00:04]}  Rxd4 {[%clk 0:00:03]} 60. Kc3 {[%clk 0:00:03]}  Rd3+ {[%clk 0:00:03]} 61. Kc4 {[%clk 0:00:04]}  Rd2 {[%clk 0:00:04]} 62. Ra3 {[%clk 0:00:04]}  Rc2+ {[%clk 0:00:03]} 63. Rc3 {[%clk 0:00:04]}  Rb2 {[%clk 0:00:04]} 64. Rb3 {[%clk 0:00:04]}  Rc2+ {[%clk 0:00:04]} 65. Kb4 {[%clk 0:00:03]}  Kxf4 {[%clk 0:00:05]} 66. b6 {[%clk 0:00:04]}  Rc8 {[%clk 0:00:05]} 67. b7 {[%clk 0:00:05]}  Rb8 {[%clk 0:00:06]} 68. Kc5 {[%clk 0:00:05]}  Kg4 {[%clk 0:00:05]} 69. Kd6 {[%clk 0:00:05]}  Kxh4 {[%clk 0:00:05]} 70. Kc7 {[%clk 0:00:06]}  Rxb7+ {[%clk 0:00:05]} 71. Kxb7 {[%clk 0:00:07]}  f4 {[%clk 0:00:05]} 72. Kc6 {[%clk 0:00:07]}  g5 {[%clk 0:00:04]} 73. Kd5 {[%clk 0:00:08]}  f5 {[%clk 0:00:02]} 74. Ke5 {[%clk 0:00:08]}  Kg4 {[%clk 0:00:02]} 75. Ra3 {[%clk 0:00:05]}  h4 {[%clk 0:00:03]} 76. Rb3 {[%clk 0:00:05]}  h3 {[%clk 0:00:01]} 77. gxh3+ {[%clk 0:00:06]}  Kh4 {[%clk 0:00:01]} 78. Kxf5 {[%clk 0:00:06]} 1-0


[Site "https://www.chess.com"]

[Event "Titled Tuesday Blitz March 28 Late 2023"]
[White "Raja Rithvik R"]
[Black "Kielinkei"]
[WhiteFideId "35007394"]
[WhiteElo "2402"]
[BlackElo "2417"]
[Result "1-0"]
[Round "01"]
[TimeControl "180+2"]
[Date "2023.03.28"]
[WhiteClock "0:00:17"]
[BlackClock "0:00:12"]

1. b3 {[%clk 0:02:42]}  e5 {[%clk 0:02:59]} 2. Bb2 {[%clk 0:02:42]}  Nc6 {[%clk 0:02:59]} 3. e3 {[%clk 0:02:42]}  d5 {[%clk 0:02:58]} 4. Bb5 {[%clk 0:02:41]}  Ne7 {[%clk 0:02:59]} 5. Bxe5 {[%clk 0:02:40]}  a6 {[%clk 0:02:59]} 6. Bxc6+ {[%clk 0:02:41]}  Nxc6 {[%clk 0:03:00]} 7. Bb2 {[%clk 0:02:41]}  Qg5 {[%clk 0:03:00]} 8. Kf1 {[%clk 0:02:37]}  Bd6 {[%clk 0:02:53]} 9. Nf3 {[%clk 0:02:37]}  Qg6 {[%clk 0:02:51]} 10. Nc3 {[%clk 0:02:35]}  Bg4 {[%clk 0:02:23]} 11. h3 {[%clk 0:02:32]}  Qh5 {[%clk 0:02:23]} 12. Kg1 {[%clk 0:02:23]}  Be6 {[%clk 0:02:15]} 13. Ne2 {[%clk 0:02:23]}  O-O {[%clk 0:02:12]} 14. Ned4 {[%clk 0:02:17]}  Rae8 {[%clk 0:01:58]} 15. Nxc6 {[%clk 0:02:15]}  bxc6 {[%clk 0:01:59]} 16. Nd4 {[%clk 0:02:16]}  Qg6 {[%clk 0:01:49]} 17. Nxc6 {[%clk 0:02:08]}  Bd7 {[%clk 0:01:45]} 18. Nd4 {[%clk 0:02:04]}  c5 {[%clk 0:01:44]} 19. Nf3 {[%clk 0:01:51]}  f5 {[%clk 0:01:41]} 20. d4 {[%clk 0:01:51]}  c4 {[%clk 0:01:30]} 21. Ne5 {[%clk 0:01:44]}  Qe6 {[%clk 0:01:24]} 22. Nxd7 {[%clk 0:01:32]}  Qxd7 {[%clk 0:01:24]} 23. Qf3 {[%clk 0:01:30]}  Bc7 {[%clk 0:01:19]} 24. g3 {[%clk 0:01:28]}  g5 {[%clk 0:01:14]} 25. Kg2 {[%clk 0:01:28]}  f4 {[%clk 0:01:09]} 26. exf4 {[%clk 0:01:28]}  gxf4 {[%clk 0:01:09]} 27. g4 {[%clk 0:01:29]}  cxb3 {[%clk 0:01:03]} 28. axb3 {[%clk 0:01:25]}  Re6 {[%clk 0:01:02]} 29. Rhe1 {[%clk 0:01:22]}  Rfe8 {[%clk 0:01:01]} 30. Bc3 {[%clk 0:01:19]}  Qc6 {[%clk 0:00:52]} 31. Rxe6 {[%clk 0:01:10]}  Rxe6 {[%clk 0:00:52]} 32. Qd3 {[%clk 0:01:11]}  Rf6 {[%clk 0:00:47]} 33. Qf3 {[%clk 0:00:57]}  Re6 {[%clk 0:00:45]} 34. Re1 {[%clk 0:00:57]}  Re4 {[%clk 0:00:43]} 35. Qd3 {[%clk 0:00:39]}  Qe6 {[%clk 0:00:33]} 36. Kf1 {[%clk 0:00:36]}  Qg6 {[%clk 0:00:25]} 37. f3 {[%clk 0:00:26]}  Rxe1+ {[%clk 0:00:23]} 38. Bxe1 {[%clk 0:00:24]}  Qe6 {[%clk 0:00:22]} 39. c4 {[%clk 0:00:20]}  dxc4 {[%clk 0:00:18]} 40. Qxc4 {[%clk 0:00:21]}  Kf7 {[%clk 0:00:17]} 41. Qxe6+ {[%clk 0:00:15]}  Kxe6 {[%clk 0:00:18]} 42. Ke2 {[%clk 0:00:16]}  Kd5 {[%clk 0:00:18]} 43. Kd3 {[%clk 0:00:17]}  Bb6 {[%clk 0:00:18]} 44. Bd2 {[%clk 0:00:17]}  Bxd4 {[%clk 0:00:18]} 45. Bxf4 {[%clk 0:00:18]}  Bg7 {[%clk 0:00:18]} 46. Be3 {[%clk 0:00:18]}  a5 {[%clk 0:00:18]} 47. f4 {[%clk 0:00:19]}  Bf6 {[%clk 0:00:17]} 48. f5 {[%clk 0:00:19]}  Bd8 {[%clk 0:00:14]} 49. g5 {[%clk 0:00:18]}  Be7 {[%clk 0:00:14]} 50. f6 {[%clk 0:00:18]}  Bd6 {[%clk 0:00:15]} 51. h4 {[%clk 0:00:18]}  Ke5 {[%clk 0:00:14]} 52. Kc4 {[%clk 0:00:16]}  Ke4 {[%clk 0:00:14]} 53. Bd2 {[%clk 0:00:16]}  Kf5 {[%clk 0:00:14]} 54. Bxa5 {[%clk 0:00:16]}  Kg4 {[%clk 0:00:14]} 55. Be1 {[%clk 0:00:16]}  h6 {[%clk 0:00:12]} 56. gxh6 {[%clk 0:00:16]}  Be5 {[%clk 0:00:12]} 57. f7 {[%clk 0:00:17]} 1-0


[Site "https://www.chess.com"]

[Event "Titled Tuesday Blitz March 28 Late 2023"]
[White "Silva, Pedro Gil Ferreira Da"]
[Black "Melkumyan, Hrant"]
[WhiteFideId "1946102"]
[BlackFideId "13302485"]
[WhiteElo "2255"]
[BlackElo "2604"]
[Result "0-1"]
[Round "01"]
[TimeControl "180+2"]
[Date "2023.03.28"]
[WhiteClock "0:01:30"]
[BlackClock "0:01:39"]

1. c4 {[%clk 0:02:59]}  e5 {[%clk 0:02:57]} 2. Nc3 {[%clk 0:02:59]}  Bb4 {[%clk 0:02:56]} 3. Nf3 {[%clk 0:02:55]}  Bxc3 {[%clk 0:02:54]} 4. dxc3 {[%clk 0:02:56]}  Nc6 {[%clk 0:02:51]} 5. g3 {[%clk 0:02:56]}  d6 {[%clk 0:02:48]} 6. Bg2 {[%clk 0:02:56]}  Nge7 {[%clk 0:02:48]} 7. O-O {[%clk 0:02:55]}  O-O {[%clk 0:02:47]} 8. Ne1 {[%clk 0:02:52]}  Be6 {[%clk 0:02:45]} 9. b3 {[%clk 0:02:51]}  a5 {[%clk 0:02:45]} 10. Nc2 {[%clk 0:02:51]}  Qd7 {[%clk 0:02:43]} 11. Ne3 {[%clk 0:02:47]}  Bh3 {[%clk 0:02:40]} 12. Nd5 {[%clk 0:02:47]}  Bxg2 {[%clk 0:02:39]} 13. Kxg2 {[%clk 0:02:48]}  b6 {[%clk 0:02:36]} 14. e4 {[%clk 0:02:47]}  f5 {[%clk 0:02:34]} 15. f3 {[%clk 0:02:41]}  Rf7 {[%clk 0:02:31]} 16. Be3 {[%clk 0:02:40]}  Raf8 {[%clk 0:02:31]} 17. Qd3 {[%clk 0:02:36]}  Nxd5 {[%clk 0:02:30]} 18. cxd5 {[%clk 0:02:33]}  Ne7 {[%clk 0:02:31]} 19. c4 {[%clk 0:02:30]}  Ng6 {[%clk 0:02:30]} 20. exf5 {[%clk 0:02:21]}  Rxf5 {[%clk 0:02:29]} 21. a3 {[%clk 0:02:19]}  h5 {[%clk 0:02:24]} 22. b4 {[%clk 0:02:17]}  axb4 {[%clk 0:02:18]} 23. axb4 {[%clk 0:02:18]}  h4 {[%clk 0:02:19]} 24. c5 {[%clk 0:02:16]}  bxc5 {[%clk 0:02:15]} 25. bxc5 {[%clk 0:02:17]}  h3+ {[%clk 0:02:12]} 26. Kg1 {[%clk 0:02:11]}  Qf7 {[%clk 0:02:10]} 27. cxd6 {[%clk 0:02:09]}  cxd6 {[%clk 0:02:09]} 28. Ra7 {[%clk 0:02:07]}  Ne7 {[%clk 0:02:01]} 29. Qe4 {[%clk 0:02:08]}  Qxd5 {[%clk 0:01:55]} 30. Rc1 {[%clk 0:01:43]}  Rxf3 {[%clk 0:01:49]} 31. Qxd5+ {[%clk 0:01:36]}  Nxd5 {[%clk 0:01:50]} 32. Bg5 {[%clk 0:01:34]}  Nc3 {[%clk 0:01:40]} 33. Re1 {[%clk 0:01:30]}  Ne2+ {[%clk 0:01:39]} 0-1


[Site "https://www.chess.com"]

[Event "Titled Tuesday Blitz March 28 Late 2023"]
[White "marik_spb"]
[Black "Albornoz Cabrera, Carlos Daniel"]
[BlackFideId "3518736"]
[WhiteElo "2414"]
[BlackElo "2501"]
[Result "0-1"]
[Round "01"]
[TimeControl "180+2"]
[Date "2023.03.28"]
[WhiteClock "0:00:26"]
[BlackClock "0:01:35"]

1. d4 {[%clk 0:03:00]}  Nf6 {[%clk 0:02:57]} 2. c4 {[%clk 0:03:00]}  g6 {[%clk 0:02:57]} 3. g3 {[%clk 0:02:59]}  Bg7 {[%clk 0:02:56]} 4. Bg2 {[%clk 0:03:00]}  O-O {[%clk 0:02:56]} 5. Nf3 {[%clk 0:03:00]}  d6 {[%clk 0:02:57]} 6. O-O {[%clk 0:03:00]}  Nbd7 {[%clk 0:02:57]} 7. Nc3 {[%clk 0:02:59]}  e5 {[%clk 0:02:57]} 8. e4 {[%clk 0:02:58]}  exd4 {[%clk 0:02:58]} 9. Nxd4 {[%clk 0:02:59]}  Re8 {[%clk 0:02:59]} 10. Re1 {[%clk 0:02:52]}  a6 {[%clk 0:02:58]} 11. Rb1 {[%clk 0:02:39]}  Rb8 {[%clk 0:02:55]} 12. b4 {[%clk 0:02:36]}  Ne5 {[%clk 0:02:54]} 13. c5 {[%clk 0:02:17]}  dxc5 {[%clk 0:02:39]} 14. bxc5 {[%clk 0:02:18]}  Nfg4 {[%clk 0:02:38]} 15. Nd5 {[%clk 0:02:08]}  c6 {[%clk 0:02:34]} 16. Nb6 {[%clk 0:01:54]}  Nxf2 {[%clk 0:02:33]} 17. Kxf2 {[%clk 0:01:48]}  Ng4+ {[%clk 0:02:32]} 18. Ke2 {[%clk 0:01:18]}  Bxd4 {[%clk 0:02:32]} 19. Nxc8 {[%clk 0:01:16]}  Rxc8 {[%clk 0:02:29]} 20. Rxb7 {[%clk 0:01:15]}  Ne5 {[%clk 0:02:05]} 21. Be3 {[%clk 0:01:07]}  Bxe3 {[%clk 0:01:43]} 22. Qxd8 {[%clk 0:00:52]}  Rcxd8 {[%clk 0:01:43]} 23. Kxe3 {[%clk 0:00:52]}  Rd3+ {[%clk 0:01:43]} 24. Kf2 {[%clk 0:00:50]}  Ra3 {[%clk 0:01:41]} 25. Re2 {[%clk 0:00:48]}  Nd3+ {[%clk 0:01:38]} 26. Kg1 {[%clk 0:00:46]}  Nxc5 {[%clk 0:01:39]} 27. Rf2 {[%clk 0:00:26]}  Nxb7 {[%clk 0:01:35]} 0-1


[Site "https://www.chess.com"]

[Event "Titled Tuesday Blitz March 28 Late 2023"]
[White "Villalba, Marcelo"]
[Black "Mendonca, Leon Luke"]
[WhiteFideId "3701859"]
[BlackFideId "35028561"]
[WhiteElo "2191"]
[BlackElo "2464"]
[Result "0-1"]
[Round "01"]
[TimeControl "180+2"]
[Date "2023.03.28"]
[WhiteClock "0:00:20"]
[BlackClock "0:00:34"]

1. e4 {[%clk 0:02:58]}  c6 {[%clk 0:02:58]} 2. Nf3 {[%clk 0:02:54]}  d5 {[%clk 0:02:58]} 3. Nc3 {[%clk 0:02:54]}  Bg4 {[%clk 0:02:58]} 4. h3 {[%clk 0:02:54]}  Bxf3 {[%clk 0:02:58]} 5. Qxf3 {[%clk 0:02:55]}  e6 {[%clk 0:02:59]} 6. d4 {[%clk 0:02:55]}  Nf6 {[%clk 0:02:55]} 7. Bd3 {[%clk 0:02:53]}  dxe4 {[%clk 0:02:54]} 8. Nxe4 {[%clk 0:02:53]}  Nxe4 {[%clk 0:02:54]} 9. Bxe4 {[%clk 0:02:48]}  Nd7 {[%clk 0:02:51]} 10. O-O {[%clk 0:02:48]}  Nf6 {[%clk 0:02:51]} 11. c3 {[%clk 0:02:38]}  Nxe4 {[%clk 0:02:50]} 12. Qxe4 {[%clk 0:02:38]}  Qd5 {[%clk 0:02:49]} 13. Re1 {[%clk 0:02:36]}  Be7 {[%clk 0:02:44]} 14. Bf4 {[%clk 0:02:35]}  O-O {[%clk 0:02:40]} 15. Be5 {[%clk 0:02:32]}  Qxe4 {[%clk 0:02:19]} 16. Rxe4 {[%clk 0:02:31]}  Rfd8 {[%clk 0:02:20]} 17. Kf1 {[%clk 0:02:27]}  Rd5 {[%clk 0:02:18]} 18. Bf4 {[%clk 0:02:22]}  a5 {[%clk 0:02:17]} 19. Rae1 {[%clk 0:02:20]}  a4 {[%clk 0:02:16]} 20. a3 {[%clk 0:02:17]}  Bf6 {[%clk 0:02:12]} 21. Be5 {[%clk 0:02:16]}  Be7 {[%clk 0:02:12]} 22. Bf4 {[%clk 0:02:16]}  g5 {[%clk 0:02:12]} 23. Bg3 {[%clk 0:02:02]}  Kg7 {[%clk 0:02:09]} 24. h4 {[%clk 0:02:01]}  h6 {[%clk 0:02:08]} 25. hxg5 {[%clk 0:02:01]}  hxg5 {[%clk 0:02:09]} 26. Be5+ {[%clk 0:02:01]}  Kg6 {[%clk 0:02:07]} 27. Bg3 {[%clk 0:02:00]}  Rh8 {[%clk 0:02:07]} 28. Kg1 {[%clk 0:01:54]}  Rhd8 {[%clk 0:01:50]} 29. Re5 {[%clk 0:01:53]}  c5 {[%clk 0:01:45]} 30. dxc5 {[%clk 0:01:37]}  Bxc5 {[%clk 0:01:44]} 31. Rxd5 {[%clk 0:01:31]}  Rxd5 {[%clk 0:01:45]} 32. Re2 {[%clk 0:01:31]}  Rd1+ {[%clk 0:01:42]} 33. Kh2 {[%clk 0:01:30]}  b6 {[%clk 0:01:11]} 34. Be5 {[%clk 0:01:26]}  f6 {[%clk 0:01:06]} 35. Bg3 {[%clk 0:01:08]}  Kf5 {[%clk 0:01:06]} 36. f3 {[%clk 0:01:03]}  e5 {[%clk 0:00:52]} 37. Bf2 {[%clk 0:00:56]}  Bxf2 {[%clk 0:00:52]} 38. Rxf2 {[%clk 0:00:56]}  Ke6 {[%clk 0:00:53]} 39. Kg3 {[%clk 0:00:46]}  f5 {[%clk 0:00:53]} 40. Re2 {[%clk 0:00:46]}  Kd5 {[%clk 0:00:52]} 41. Kf2 {[%clk 0:00:44]}  Rd3 {[%clk 0:00:46]} 42. g3 {[%clk 0:00:39]}  e4 {[%clk 0:00:39]} 43. fxe4+ {[%clk 0:00:38]}  fxe4 {[%clk 0:00:40]} 44. Kg2 {[%clk 0:00:34]}  g4 {[%clk 0:00:38]} 45. Kf2 {[%clk 0:00:35]}  b5 {[%clk 0:00:38]} 46. Kg2 {[%clk 0:00:35]}  e3 {[%clk 0:00:39]} 47. Kf1 {[%clk 0:00:31]}  Ke4 {[%clk 0:00:37]} 48. Kg2 {[%clk 0:00:29]}  Rd2 {[%clk 0:00:37]} 49. Kf1 {[%clk 0:00:20]}  Kf3 {[%clk 0:00:34]} 0-1


[Site "https://www.chess.com"]